fUST/lending_fUST_20241203
["ID","MTS","AMOUNT","RATE_DAILY","PERIOD"]
[344024306,1733215298935,160.178158,0.00013973,2]
[344024307,1733215299147,160.178158,0.00022759,2]
[344024308,1733215309995,500.0,0.00028105,7]
[344024309,1733215310330,236.16,0.00028379,7]
[344024310,1733215317297,1396.21,0.000286,2]
[344024311,1733215324854,292.0668906,0.00028582,11]
[344024312,1733215328625,500.0,0.00028105,7]
[344024313,1733215329078,500.0,0.00028379,7]
[344024314,1733215329354,500.0,0.00028653,7]
[344024315,1733215329789,500.0,0.00028927,7]
[344024316,1733215363743,1169.27083333,0.00028106,2]
[344024319,1733215405539,-500.0,0.00029099,7]
[344024320,1733215405561,-500.0,0.00029099,7]
[344024321,1733215405585,-434.49774596,0.00029201,7]
[344024322,1733215405608,-500.0,0.00029201,7]
[344024323,1733215405632,-832.86,0.00029347,7]
[344024324,1733215405654,-300.0,0.00029371,2]
[344024325,1733215405675,-500.0,0.00029372,7]
[344024326,1733215405701,-500.0,0.00029372,7]
[344024327,1733215405724,-500.0,0.00029373,7]
[344024328,1733215405746,-500.0,0.00029373,7]
[344024329,1733215405770,-152.15,0.000294,31]
[344024330,1733215405793,-152.15,0.000294,31]
[344024331,1733215405816,-152.15,0.000294,31]
[344024332,1733215405839,-152.15,0.000294,31]
[344024333,1733215405861,-152.15,0.000294,31]
[344024334,1733215405884,-152.15,0.000294,31]
[344024335,1733215405907,-152.15,0.000294,31]
[344024336,1733215405929,-152.15,0.000294,31]
[344024337,1733215405954,-152.15,0.000294,31]
[344024338,1733215405979,-500.0,0.00029475,7]
[344024339,1733215406001,-2004.62,0.00029564,7]
[344024340,1733215406024,-500.0,0.00029564,7]
[344024341,1733215406046,-500.0,0.00029564,7]
[344024342,1733215406068,-1169.27083333,0.00029565,3]
[344024343,1733215406091,-832.86,0.00029621,7]
[344024344,1733215406112,-500.0,0.00029646,7]
[344024345,1733215406133,-500.0,0.00029646,7]
[344024346,1733215406154,-500.0,0.00029647,7]
[344024347,1733215406175,-500.0,0.00029647,7]
[344024348,1733215406199,-1169.27083333,0.00029647,7]
[344024349,1733215406220,-2000.0,0.0002967,120]
[344024350,1733215406242,-769.219,0.00029697,15]
[344024351,1733215406263,-5507.813,0.00029702,2]
[344024352,1733215406285,-500.0,0.00029749,7]
[344024353,1733215406308,-2004.62,0.00029838,7]
[344024354,1733215406331,-380.49,0.00029838,7]
[344024355,1733215406353,-280.93,0.00029838,7]
[344024356,1733215406374,-312.00407999,0.0002986,7]
[344024357,1733215406395,-500.0,0.0002986,7]
[344024358,1733215406419,-832.86,0.00029895,7]
[344024359,1733215406443,-666.0,0.000299,2]
[344024360,1733215406464,-6666.0,0.000299,2]
[344024361,1733215406484,-627.30144385,0.000299,2]
[344024362,1733215406506,-1435.64117682,0.000299,2]
[344024363,1733215406527,-153.33899383,0.000299,2]
[344024364,1733215406548,-500.0,0.0002992,7]
[344024365,1733215406569,-534.72006447,0.0002992,7]
[344024366,1733215406591,-500.0,0.00029921,7]
[344024367,1733215406615,-500.0,0.00029921,7]
[344024368,1733215406637,-500.0,0.00029973,5]
[344024369,1733215406658,-507.31647996,0.00029973,5]
[344024370,1733215406680,-500.74660377,0.00029973,2]
[344024371,1733215406707,-500.53577371,0.00029973,5]
[344024372,1733215406728,-500.7026176,0.00029973,5]
[344024373,1733215406752,-171.99199537,0.00029973,5]
[344024374,1733215406775,-500.62551465,0.00029973,5]
[344024375,1733215406797,-374.96339222,0.00029973,2]
[344024376,1733215406818,-513.73402035,0.00029973,5]
[344024377,1733215406840,-153.33899383,0.00029984,2]
[344024378,1733215406861,-210.57,0.00029989,3]
[344024379,1733215406884,-746.0,0.0002999,10]
[344024380,1733215406905,-214.15145022,0.00029999,120]
[344024381,1733215406927,-325.2143136,0.00029999,2]
[344024382,1733215406958,-500.0,0.00029999,2]
[344024383,1733215406985,-500.0,0.00029999,2]
[344024384,1733215407010,-500.0,0.00029999,2]
[344024385,1733215407033,-500.0,0.00029999,2]
[344024386,1733215407058,-500.0,0.00029999,2]
[344024387,1733215407082,-500.0,0.00029999,2]
[344024388,1733215407104,-500.0,0.00029999,2]
[344024389,1733215407126,-518.76124394,0.00029999,2]
[344024390,1733215407232,-500.0,0.00029999,2]
[344024391,1733215407259,-500.0,0.00029999,2]
[344024392,1733215407280,-500.0,0.00029999,2]
[344024393,1733215407302,-441.15009151,0.00029999,2]
[344024394,1733215407325,-500.0,0.00029999,2]
[344024395,1733215407345,-192.34450777,0.00029999,2]
[344024396,1733215407368,-169.7435593,0.00029999,2]
[344024397,1733215407388,-166.7260391,0.00029999,2]
[344024398,1733215407410,-500.0,0.00029999,2]
[344024399,1733215407431,-500.0,0.00029999,2]
[344024400,1733215407457,-500.0,0.00029999,2]
[344024401,1733215407478,-500.0,0.00029999,2]
[344024402,1733215407498,-423.64777105,0.00029999,2]
[344024403,1733215407519,-500.0,0.00029999,2]
[344024404,1733215407542,-500.0,0.00029999,2]
[344024405,1733215407564,-500.0,0.00029999,2]
[344024406,1733215407586,-500.0,0.00029999,2]
[344024407,1733215407607,-364.34517782,0.00029999,2]
[344024408,1733215407630,-607.04230124,0.00029999,2]
[344024409,1733215407651,-500.0,0.00029999,2]
[344024410,1733215407673,-500.0,0.00029999,2]
[344024411,1733215407700,-500.0,0.00029999,2]
[344024412,1733215407722,-500.0,0.00029999,2]
[344024413,1733215407744,-500.0,0.00029999,2]
[344024414,1733215407766,-500.0,0.00029999,2]
[344024415,1733215407789,-500.0,0.00029999,2]
[344024416,1733215407811,-500.0,0.00029999,2]
[344024417,1733215407834,-500.0,0.00029999,2]
[344024418,1733215407857,-500.0,0.00029999,2]
[344024419,1733215407879,-500.0,0.00029999,2]
[344024420,1733215407902,-500.0,0.00029999,2]
[344024421,1733215407925,-500.0,0.00029999,2]
[344024422,1733215407958,-500.0,0.00029999,2]
[344024423,1733215407985,-500.0,0.00029999,2]
[344024424,1733215408009,-500.0,0.00029999,2]
[344024425,1733215408033,-500.0,0.00029999,2]
[344024426,1733215408057,-500.0,0.00029999,2]
[344024427,1733215408080,-500.0,0.00029999,2]
[344024428,1733215408102,-500.0,0.00029999,2]
[344024429,1733215408125,-500.0,0.00029999,2]
[344024430,1733215408151,-500.0,0.00029999,2]
[344024431,1733215408174,-500.0,0.00029999,2]
[344024432,1733215408200,-500.0,0.00029999,2]
[344024433,1733215408223,-500.0,0.00029999,2]
[344024434,1733215408246,-500.0,0.00029999,2]
[344024435,1733215408268,-500.0,0.00029999,2]
[344024436,1733215408290,-500.0,0.00029999,2]
[344024437,1733215408313,-500.0,0.00029999,2]
[344024438,1733215408337,-500.0,0.00029999,2]
[344024439,1733215408359,-500.0,0.00029999,2]
[344024440,1733215408382,-500.0,0.00029999,2]
[344024441,1733215408404,-500.0,0.00029999,2]
[344024442,1733215408427,-500.0,0.00029999,2]
[344024443,1733215408452,-500.0,0.00029999,2]
[344024444,1733215408475,-500.0,0.00029999,2]
[344024445,1733215408499,-500.0,0.00029999,2]
[344024446,1733215408522,-500.0,0.00029999,2]
[344024447,1733215408545,-500.0,0.00029999,2]
[344024448,1733215408568,-500.0,0.00029999,2]
[344024449,1733215408590,-500.0,0.00029999,2]
[344024450,1733215408613,-500.0,0.00029999,2]
[344024451,1733215408636,-500.0,0.00029999,2]
[344024452,1733215408659,-500.0,0.00029999,2]
[344024453,1733215408681,-500.0,0.00029999,2]
[344024454,1733215408706,-500.0,0.00029999,2]
[344024455,1733215408728,-500.0,0.00029999,2]
[344024456,1733215408752,-500.0,0.00029999,2]
[344024457,1733215408776,-500.0,0.00029999,2]
[344024458,1733215408800,-551.83070299,0.00029999,2]
[344024459,1733215408825,-500.0,0.00029999,2]
[344024460,1733215408849,-500.0,0.00029999,2]
[344024461,1733215408872,-500.0,0.00029999,2]
[344024462,1733215408900,-500.0,0.00029999,2]
[344024463,1733215408923,-500.0,0.00029999,2]
[344024464,1733215408948,-500.0,0.00029999,2]
[344024465,1733215408975,-500.0,0.00029999,2]
[344024466,1733215408999,-500.0,0.00029999,2]
[344024467,1733215409023,-500.0,0.00029999,2]
[344024468,1733215409050,-500.0,0.00029999,2]
[344024469,1733215409075,-500.0,0.00029999,2]
[344024470,1733215409098,-500.0,0.00029999,2]
[344024471,1733215409123,-500.0,0.00029999,2]
[344024472,1733215409145,-500.0,0.00029999,2]
[344024473,1733215409167,-500.0,0.00029999,2]
[344024474,1733215409192,-500.0,0.00029999,2]
[344024475,1733215409214,-500.0,0.00029999,2]
[344024476,1733215409236,-500.0,0.00029999,2]
[344024477,1733215409258,-500.0,0.00029999,2]
[344024478,1733215409280,-500.0,0.00029999,2]
[344024479,1733215409304,-500.0,0.00029999,2]
[344024480,1733215409327,-500.0,0.00029999,2]
[344024481,1733215409350,-500.0,0.00029999,2]
[344024482,1733215409374,-500.0,0.00029999,2]
[344024483,1733215409397,-500.0,0.00029999,2]
[344024484,1733215409420,-500.0,0.00029999,2]
[344024485,1733215409446,-500.0,0.00029999,2]
[344024486,1733215409469,-500.0,0.00029999,2]
[344024487,1733215409490,-250.0,0.00029999,2]
[344024488,1733215409515,-589648.5600346,0.0003,15]
[344024499,1733215810432,266.7365796,0.00027548,2]
[344024547,1733215832293,-902.53425373,0.00027548,2]
[344024549,1733215832304,-300.0,0.00028081,2]
[344024551,1733215832314,-300.0,0.00028081,2]
[344024553,1733215832323,-10595.1761169,0.00028082,2]
[344024555,1733215832332,-293.9769279,0.00028278,2]
[344024557,1733215832342,-1582.9362917,0.0002832,2]
[344024559,1733215832352,-2283.03020988,0.0002844,120]
[344024561,1733215832362,-1256.59,0.000286,2]
[344024563,1733215832372,-179.418145,0.00028633,2]
[344024565,1733215832381,-179.418145,0.0002899,2]
[344024567,1733215832391,-2000.0,0.00029088,120]
[344024569,1733215832401,-179.418145,0.00029348,2]
[344024571,1733215832411,-500.0,0.00029372,7]
[344024573,1733215832420,-500.0,0.00029372,7]
[344024575,1733215832429,-500.0,0.00029474,7]
[344024577,1733215832438,-500.0,0.00029474,7]
[344024579,1733215832447,-500.0,0.00029474,7]
[344024581,1733215832457,-829.08,0.00029564,7]
[344024583,1733215832466,-2000.0,0.00029614,120]
[344024585,1733215832476,-467.64,0.00029646,7]
[344024587,1733215832485,-500.0,0.00029646,7]
[344024589,1733215832495,-1837.57,0.00029701,7]
[344024591,1733215832505,-500.0,0.00029701,7]
[344024593,1733215832515,-179.418145,0.00029706,2]
[344024595,1733215832524,-500.0,0.00029748,7]
[344024597,1733215832536,-500.0,0.00029748,7]
[344024599,1733215832546,-500.0,0.00029748,7]
[344024601,1733215832555,-829.08,0.00029838,7]
[344024603,1733215832565,-6666.0,0.000299,2]
[344024605,1733215832575,-2000.0,0.00029913,120]
[344024607,1733215832585,-500.0,0.0002992,7]
[344024609,1733215832594,-1837.57,0.00029975,7]
[344024611,1733215832604,-500.0,0.00029975,7]
[344024613,1733215832613,-500.0,0.00029989,7]
[344024615,1733215832622,-500.0,0.00029989,7]
[344024617,1733215832631,-359.76,0.0002999,10]
[344024618,1733215832641,-561.71,0.0002999,10]
[344024620,1733215832650,-500.0,0.00029999,2]
[344024621,1733215832660,-181.53392019,0.00029999,2]
[344024622,1733215832669,-500.0,0.00029999,2]
[344024623,1733215832678,-306.15318502,0.00029999,2]
[344024624,1733215832688,-310.04875045,0.00029999,2]
[344024625,1733215832699,-500.0,0.00029999,2]
[344024626,1733215832709,-500.0,0.00029999,2]
[344024627,1733215832719,-207.1494642,0.00029999,2]
[344024628,1733215832729,-193012.97186348,0.0003,15]
[344024639,1733215838296,-260.85000006,0.0002992,2]
[344024640,1733215838346,-471.00168443,0.0002992,2]
[344024641,1733215838357,-3172324.07846269,0.0003,15]
[344024642,1733215838367,-302.0,0.0003,2]
[344024643,1733215838376,-151.0,0.0003,18]
[344024644,1733215838386,-151.0,0.0003,10]
[344024645,1733215838396,-151.0,0.0003,13]
[344024646,1733215838405,-191.0,0.0003,2]
[344024647,1733215838414,-159.0,0.0003,2]
[344024651,1733215838527,-500.0,0.00030022,7]
[344024652,1733215838545,-500.0,0.00030022,7]
[344024653,1733215838556,-500.0,0.00030022,7]
[344024654,1733215838566,-711.17744,0.00030027,30]
[344024655,1733215838576,-610.021694,0.00030064,2]
[344024656,1733215838587,-287.069032,0.00030064,2]
[344024658,1733215838598,-179.418145,0.00030064,2]
[344024660,1733215838610,-829.08,0.00030112,7]
[344024661,1733215838621,-192.530621,0.00030137,120]
[344024662,1733215838632,-500.0,0.00030194,7]
[344024664,1733215838643,-500.0,0.00030194,7]
[344024666,1733215838654,-152.15,0.000302,31]
[344024668,1733215838664,-152.15,0.000302,31]
[344024669,1733215838675,-152.15,0.000302,31]
[344024670,1733215838685,-152.15,0.000302,31]
[344024671,1733215838695,-152.15,0.000302,31]
[344024672,1733215838705,-152.15,0.000302,31]
[344024673,1733215838714,-152.15,0.000302,31]
[344024674,1733215838724,-152.15,0.000302,31]
[344024675,1733215838734,-152.15,0.000302,31]
[344024676,1733215838744,-152.15,0.000302,31]
[344024677,1733215838753,-152.15,0.000302,31]
[344024678,1733215838763,-152.15,0.000302,31]
[344024679,1733215838773,-152.15,0.000302,31]
[344024680,1733215838786,-152.15,0.000302,31]
[344024681,1733215838796,-152.15,0.000302,31]
[344024682,1733215838805,-152.15,0.000302,31]
[344024683,1733215838815,-152.15,0.000302,31]
[344024684,1733215838825,-152.15,0.000302,31]
[344024685,1733215838834,-3008.81304257,0.0003022,7]
[344024686,1733215838844,-1837.57,0.00030249,7]
[344024687,1733215838854,-500.0,0.00030296,7]
[344024688,1733215838864,-420.0,0.00030325,2]
[344024689,1733215838874,-1169.27083333,0.00030386,7]
[344024690,1733215838884,-829.08,0.00030386,7]
[344024691,1733215838893,-302.0,0.00030411,2]
[344024692,1733215838903,-1221.0809417,0.00030425,2]
[344024693,1733215838912,-500.0,0.00030468,7]
[344024694,1733215838921,-500.0,0.00030468,7]
[344024695,1733215838931,-1837.57,0.00030523,7]
[344024696,1733215838941,-159.04479379,0.0003057,7]
[344024697,1733215838950,-2000.0,0.000306,3]
[344024698,1733215838960,-2000.0,0.000306,3]
[344024699,1733215838969,-9413.34281785,0.00030648,21]
[344024700,1733215838980,-666.0,0.00030648,2]
[344024701,1733215838990,-829.08,0.0003066,7]
[344024702,1733215838999,-1097.52033494,0.00030674,2]
[344024703,1733215839009,-151.0,0.00030675,15]
[344024704,1733215839018,-500.0,0.00030688,5]
[344024705,1733215839028,-500.0,0.00030688,5]
[344024706,1733215839040,-217.00718882,0.000307,2]
[344024707,1733215839050,-500.0,0.00030742,7]
[344024708,1733215839060,-500.0,0.00030742,7]
[344024709,1733215839069,-1169.27083333,0.00030748,7]
[344024710,1733215839080,-1169.27083333,0.00030748,7]
[344024711,1733215839090,-151.0,0.00030748,7]
[344024712,1733215839104,-153.860128,0.00030748,7]
[344024713,1733215839114,-151.0,0.00030748,7]
[344024714,1733215839124,-186.761242,0.00030748,7]
[344024715,1733215839134,-151.0,0.00030748,7]
[344024716,1733215839144,-151.0,0.00030748,7]
[344024717,1733215839154,-151.0,0.00030748,7]
[344024718,1733215839163,-256.474156,0.00030748,7]
[344024719,1733215839174,-171.9836,0.00030751,7]
[344024720,1733215839184,-151.0,0.00030758,7]
[344024721,1733215839194,-151.0,0.00030758,7]
[344024722,1733215839203,-151.0,0.00030758,7]
[344024723,1733215839212,-173.282549,0.00030758,7]
[344024724,1733215839223,-165.000298,0.00030758,7]
[344024725,1733215839232,-151.0,0.00030758,7]
[344024726,1733215839242,-151.0,0.00030758,7]
[344024727,1733215839252,-151.0,0.00030758,7]
[344024728,1733215839262,-151.0,0.00030758,7]
[344024729,1733215839272,-151.0,0.00030758,7]
[344024730,1733215839282,-151.0,0.00030758,7]
[344024731,1733215839295,-151.0,0.00030758,7]
[344024732,1733215839305,-155.7690759,0.00030767,30]
[344024733,1733215839314,-213.0422711,0.00030767,30]
[344024734,1733215839324,-314.7029031,0.00030767,30]
[344024735,1733215839334,-500.0,0.00030773,5]
[344024736,1733215839343,-157.060061,0.00030773,5]
[344024737,1733215839353,-501.83189523,0.00030773,5]
[344024738,1733215839362,-171.52230488,0.0003078,2]
[344024739,1733215839371,-164326.75779329,0.0003078,2]
[344024740,1733215839381,-355943.38367721,0.0003078,10]
[344024741,1733215839391,-18579.409999,0.0003078,2]
[344024742,1733215839401,-201.2,0.0003078,2]
[344024743,1733215839410,-553126.57753756,0.0003078,10]
[344024744,1733215839695,-19366.46362235,0.0003078,10]
[344024745,1733215839707,-10000.0,0.0003078,10]
[344024772,1733215843277,-356.5541,0.00030027,30]
[344024773,1733215843287,-468.09,0.0003077,10]
[344024774,1733215843298,-14538.59943056,0.0003078,10]
[344024775,1733215843310,-80487.9113612,0.0003078,10]
[344024783,1733215848110,-355.7,0.00030027,30]
[344024784,1733215848121,-144.3,0.0003078,10]
[344024785,1733215848135,-23919.95489368,0.0003078,10]
[344024786,1733216005334,166.718886,0.00013973,2]
[344024813,1733216720038,166.718886,0.00013973,2]
[344024866,1733217038424,-1169.27083333,0.0002147,2]
[344024868,1733217038434,-166.718886,0.00024224,2]
[344024870,1733217038444,-2173.0,0.00025515,2]
[344024872,1733217038453,-300.0,0.00026207,2]
[344024874,1733217038465,-11784.6505141,0.00026208,2]
[344024876,1733217038478,-157.43,0.00027234,2]
[344024878,1733217038487,-202.215779,0.00027796,2]
[344024880,1733217038497,-367.00107557,0.00028005,2]
[344024882,1733217038510,-500.0,0.00028104,7]
[344024884,1733217038519,-2827.78413494,0.00028104,7]
[344024887,1733217038531,-1393.15586506,0.00028104,7]
[344024889,1733217038541,-703.32,0.00028104,7]
[344024891,1733217038553,-500.0,0.00028104,7]
[344024892,1733217038563,-500.0,0.00028104,7]
[344024894,1733217038572,-240.12150485,0.00028104,7]
[344024895,1733217038582,-500.0,0.00028104,7]
[344024898,1733217038592,-500.0,0.00028105,7]
[344024900,1733217038602,-500.0,0.00028105,7]
[344024902,1733217038611,-500.0,0.00028105,7]
[344024905,1733217038621,-500.0,0.00028105,7]
[344024907,1733217038633,-500.0,0.00028105,7]
[344024909,1733217038643,-501.36368156,0.00028105,7]
[344024917,1733217038721,-500.0,0.00028105,7]
[344024919,1733217038753,-243.27943614,0.00028105,7]
[344024921,1733217038763,-640.91,0.00028105,7]
[344024923,1733217038772,-500.0,0.00028105,7]
[344024925,1733217038782,-516.31072651,0.00028105,7]
[344024927,1733217038791,-61.53878588,0.00028105,7]
[344024930,1733217038803,-439.78121412,0.00028105,7]
[344024932,1733217038813,-522.73841742,0.00028105,7]
[344024934,1733217038823,-500.0,0.00028105,7]
[344024936,1733217038832,-420.0,0.00028356,2]
[344024938,1733217038842,-500.0,0.00028378,7]
[344024940,1733217038851,-1312.48036846,0.00028378,7]
[344024942,1733217038863,-2908.45963154,0.00028378,7]
[344024944,1733217038873,-703.32,0.00028378,7]
[344024946,1733217038883,-500.0,0.00028378,7]
[344024948,1733217038893,-849.32190626,0.00028379,2]
[344024950,1733217038903,-500.0,0.00028379,7]
[344024952,1733217038913,-233.78081976,0.00028379,7]
[344024953,1733217038923,-500.0,0.00028379,7]
[344024954,1733217038933,-500.0,0.00028379,7]
[344024955,1733217038943,-500.0,0.00028379,7]
[344024956,1733217038953,-509.27458419,0.00028379,7]
[344024957,1733217038963,-640.91,0.00028379,7]
[344024958,1733217038972,-551.9626408,0.00028379,7]
[344024959,1733217038981,-501.32,0.00028379,7]
[344024960,1733217038990,-500.0,0.00028379,7]
[344024961,1733217039000,-367.00107552,0.00028386,2]
[344024962,1733217039009,-1130.93,0.000286,2]
[344024963,1733217039019,-167.073968,0.00028633,2]
[344024964,1733217039028,-179.418147,0.00028633,2]
[344024965,1733217039038,-179.418145,0.00028633,2]
[344024966,1733217039048,-172.816036,0.00028633,2]
[344024967,1733217039057,-159.04479379,0.00028652,7]
[344024968,1733217039066,-4220.94,0.00028652,7]
[344024969,1733217039076,-703.32,0.00028652,7]
[344024970,1733217039086,-500.0,0.00028653,7]
[344024971,1733217039096,-500.0,0.00028653,7]
[344024972,1733217039107,-500.0,0.00028653,7]
[344024973,1733217039117,-500.0,0.00028653,7]
[344024974,1733217039127,-640.91,0.00028653,7]
[344024975,1733217039136,-501.32,0.00028653,7]
[344024976,1733217039146,-500.0,0.00028653,7]
[344024977,1733217039156,-367.00107552,0.00028767,2]
[344024978,1733217039165,-4220.94,0.00028926,7]
[344024979,1733217039175,-703.32,0.00028926,7]
[344024980,1733217039184,-500.0,0.00028927,7]
[344024981,1733217039194,-500.0,0.00028927,7]
[344024982,1733217039203,-500.0,0.00028927,7]
[344024983,1733217039213,-500.0,0.00028927,7]
[344024984,1733217039223,-640.91,0.00028927,7]
[344024985,1733217039233,-501.32,0.00028927,7]
[344024986,1733217039243,-500.0,0.00028927,7]
[344024987,1733217039255,-167.073968,0.0002899,2]
[344024988,1733217039266,-179.418145,0.0002899,2]
[344024989,1733217039275,-501.83189523,0.00029073,5]
[344024990,1733217039284,-500.0,0.00029086,7]
[344024991,1733217039294,-500.0,0.00029086,7]
[344024992,1733217039303,-168.0,0.00029086,7]
[344024993,1733217039314,-500.0,0.00029086,7]
[344024994,1733217039325,-500.0,0.00029086,7]
[344024995,1733217039336,-500.0,0.00029086,7]
[344024996,1733217039345,-500.0,0.00029086,7]
[344024997,1733217039355,-500.0,0.00029086,7]
[344024998,1733217039364,-500.0,0.00029086,7]
[344024999,1733217039374,-500.0,0.00029086,7]
[344025000,1733217039383,-500.0,0.00029086,7]
[344025001,1733217039393,-500.0,0.00029086,7]
[344025002,1733217039402,-500.0,0.00029086,7]
[344025003,1733217039411,-500.0,0.00029086,7]
[344025004,1733217039421,-500.0,0.00029086,7]
[344025005,1733217039430,-503.38263193,0.00029086,7]
[344025006,1733217039440,-500.0,0.00029086,7]
[344025007,1733217039450,-509.84087437,0.00029086,7]
[344025008,1733217039460,-500.0,0.00029086,7]
[344025009,1733217039472,-500.0,0.00029086,7]
[344025010,1733217039481,-500.0,0.00029086,7]
[344025011,1733217039492,-500.0,0.00029086,7]
[344025012,1733217039503,-500.0,0.00029086,7]
[344025013,1733217039513,-500.0,0.00029086,7]
[344025014,1733217039523,-500.0,0.00029086,7]
[344025015,1733217039534,-500.0,0.00029086,7]
[344025016,1733217039545,-500.0,0.00029086,7]
[344025017,1733217039555,-634.56,0.00029087,7]
[344025018,1733217039565,-500.0,0.00029087,7]
[344025019,1733217039575,-500.0,0.00029087,7]
[344025020,1733217039584,-500.0,0.00029087,7]
[344025021,1733217039594,-500.0,0.00029087,7]
[344025022,1733217039604,-500.0,0.00029087,7]
[344025023,1733217039614,-500.0,0.00029087,7]
[344025024,1733217039623,-435.30592004,0.00029087,7]
[344025025,1733217039634,-500.0,0.00029087,7]
[344025026,1733217039644,-500.0,0.00029087,7]
[344025027,1733217039654,-570.07,0.00029087,7]
[344025028,1733217039664,-525.3292163,0.00029087,7]
[344025029,1733217039674,-237.2117996,0.00029087,7]
[344025030,1733217039684,-367.00107552,0.00029148,2]
[344025031,1733217039695,-4220.94,0.000292,7]
[344025032,1733217039705,-703.32,0.000292,7]
[344025033,1733217039715,-500.0,0.00029201,7]
[344025034,1733217039725,-500.0,0.00029201,7]
[344025035,1733217039735,-500.0,0.00029201,7]
[344025036,1733217039744,-500.0,0.00029201,7]
[344025037,1733217039755,-640.91,0.00029201,7]
[344025038,1733217039764,-501.32,0.00029201,7]
[344025039,1733217039773,-641.15264307,0.00029201,7]
[344025040,1733217039782,-167.073968,0.00029348,2]
[344025041,1733217039792,-179.418145,0.00029348,2]
[344025042,1733217039802,-313.81,0.0002935,3]
[344025043,1733217039812,-531.41,0.0002935,10]
[344025044,1733217039822,-442.85,0.0002935,10]
[344025045,1733217039831,-500.0,0.0002936,7]
[344025046,1733217039841,-256.94895472,0.0002936,7]
[344025048,1733217039851,-500.0,0.0002936,7]
[344025050,1733217039861,-500.0,0.0002936,7]
[344025051,1733217039870,-500.0,0.0002936,7]
[344025052,1733217039880,-500.0,0.0002936,7]
[344025053,1733217039889,-500.0,0.0002936,7]
[344025054,1733217039899,-500.0,0.0002936,7]
[344025055,1733217039909,-548.15323759,0.0002936,7]
[344025056,1733217039918,-409.75556335,0.0002936,7]
[344025057,1733217039928,-500.0,0.0002936,7]
[344025058,1733217039939,-417.50454423,0.0002936,7]
[344025059,1733217039953,-500.0,0.0002936,7]
[344025060,1733217039963,-500.0,0.0002936,7]
[344025061,1733217039972,-500.0,0.0002936,7]
[344025062,1733217039982,-503.85456071,0.0002936,7]
[344025063,1733217039991,-500.0,0.0002936,7]
[344025064,1733217040003,-500.0,0.0002936,7]
[344025065,1733217040013,-500.0,0.0002936,7]
[344025066,1733217040022,-500.0,0.0002936,7]
[344025067,1733217040032,-500.0,0.00029361,7]
[344025068,1733217040042,-331.27940141,0.00029361,7]
[344025069,1733217040052,-161.47436771,0.00029361,7]
[344025070,1733217040061,-570.07,0.00029361,7]
[344025071,1733217040071,-510.70559669,0.00029371,7]
[344025073,1733217040083,-500.0,0.00029371,7]
[344025074,1733217040092,-500.0,0.00029371,7]
[344025076,1733217040101,-500.0,0.00029371,7]
[344025077,1733217040111,-500.0,0.00029371,7]
[344025078,1733217040121,-502.78599637,0.00029371,7]
[344025079,1733217040131,-500.0,0.00029371,7]
[344025080,1733217040140,-500.0,0.00029371,7]